fUSD/lending_fUSD_20240614
["ID","MTS","AMOUNT","RATE_DAILY","PERIOD"]
[329509702,1718409121211,-500.0,0.00023013,3]
[329509703,1718409121248,-500.0,0.00023013,3]
[329509704,1718409121280,-1655.24,0.00023013,3]
[329509705,1718409121304,-2076.84,0.00023013,3]
[329509706,1718409121315,-682.08,0.00023013,3]
[329509707,1718409121327,-1822.84,0.00023013,3]
[329509708,1718409121350,-500.0,0.00023013,3]
[329509709,1718409121362,-5529.61,0.00023013,3]
[329509710,1718409121413,-786.01,0.00023013,3]
[329509711,1718409121429,-574.58,0.00023013,3]
[329509712,1718409121444,-3184.07,0.00023013,3]
[329509713,1718409121477,-11746.88,0.00023013,3]
[329509714,1718409121496,-662.27,0.00023013,3]
[329509715,1718409121508,-658.84,0.00023013,3]
[329509716,1718409121520,-500.0,0.00023013,3]
[329509717,1718409121556,-6064.15,0.00023013,3]
[329509718,1718409121567,-1212.45,0.00023013,3]
[329509719,1718409121580,-500.0,0.00023013,3]
[329509720,1718409121592,-500.0,0.00023013,3]
[329509721,1718409121610,-500.0,0.00023013,3]
[329509722,1718409121624,-1250.84,0.00023013,3]
[329509723,1718409121651,-500.0,0.00023013,3]
[329509724,1718409121682,-1457.35,0.00023013,3]
[329509725,1718409121706,-2523.73,0.00023013,3]
[329509726,1718409121727,-521.47,0.00023013,3]
[329509727,1718409121741,-500.0,0.00023013,3]
[329509728,1718409121792,-500.0,0.00023013,3]
[329509729,1718409121805,-699.17,0.00023013,3]
[329509730,1718409121816,-500.0,0.00023013,3]
[329509731,1718409121827,-500.0,0.00023013,3]
[329509732,1718409121870,-500.0,0.00023013,3]
[329509733,1718409121882,-500.0,0.00023013,3]
[329509734,1718409121909,-896.88,0.00023013,3]
[329509735,1718409121920,-330.11,0.00023013,3]
[329509736,1718409121938,-1061.25,0.00023013,3]
[329509737,1718409121958,-500.0,0.00023013,3]
[329509738,1718409121988,-490.85991169,0.00023013,3]
[329509739,1718409122002,-500.0,0.00023013,3]
[329509740,1718409122031,-669.5,0.00023013,3]
[329509741,1718409122043,-500.0,0.00023013,3]
[329509742,1718409122068,-532.32,0.00023013,3]
[329509743,1718409122084,-500.0,0.00023013,3]
[329509744,1718409122095,-500.0,0.00023013,3]
[329509745,1718409122108,-500.0,0.00023013,3]
[329509746,1718409122121,-2252.2,0.00023013,3]
[329509747,1718409122133,-1329.78,0.00023013,3]
[329509748,1718409122154,-889.55,0.00023013,3]
[329509749,1718409122174,-726.83,0.00023013,3]
[329509750,1718409122192,-500.0,0.00023013,3]
[329509751,1718409122300,-1121.95,0.00023013,3]
[329509752,1718409122348,-500.0,0.00023013,3]
[329509753,1718409122381,-500.0,0.00023013,3]
[329509754,1718409122425,-500.0,0.00023013,3]
[329509755,1718409122439,-500.0,0.00023013,3]
[329509756,1718409122454,-635.93,0.00023013,3]
[329509757,1718409122470,-2002.63,0.00023013,3]
[329509758,1718409122483,-500.0,0.00023013,3]
[329509759,1718409122497,-500.0,0.00023013,3]
[329509760,1718409122509,-500.0,0.00023013,3]
[329509761,1718409122521,-749.23,0.00023013,3]
[329509762,1718409122535,-1297.0,0.00023013,3]
[329509763,1718409122557,-1013.7,0.00023013,3]
[329509764,1718409122580,-1218.43,0.00023013,3]
[329509765,1718409122593,-500.0,0.00023013,3]
[329509766,1718409122605,-2089.69,0.00023013,3]
[329509767,1718409122617,-500.0,0.00023013,3]
[329509768,1718409122628,-605.55,0.00023013,3]
[329509769,1718409122639,-814.13,0.00023013,3]
[329509770,1718409122655,-1069.53,0.00023013,3]
[329509771,1718409122667,-618.20885671,0.00023013,3]
[329509772,1718409122712,-500.0,0.00023013,3]
[329509773,1718409122737,-500.0,0.00023013,3]
[329509774,1718409122769,-500.0,0.00023013,3]
[329509775,1718409122795,-566.82,0.00023013,3]
[329509776,1718409122819,-500.0,0.00023013,3]
[329509777,1718409122856,-500.0,0.00023013,3]
[329509778,1718409122888,-1126.29,0.00023013,3]
[329509779,1718409122907,-728.21,0.00023013,3]
[329509780,1718409122918,-4506.65,0.00023013,3]
[329509781,1718409122930,-505.75,0.00023013,3]
[329509782,1718409122948,-1722.19,0.00023013,3]
[329509783,1718409122965,-500.0,0.00023013,3]
[329509784,1718409122985,-1029.14,0.00023013,3]
[329509785,1718409123004,-690.09,0.00023013,3]
[329509786,1718409123015,-1013.4,0.00023013,3]
[329509787,1718409123026,-647.93385837,0.00023013,3]
[329509788,1718409123045,-623.88,0.00023013,3]
[329509789,1718409123069,-500.0,0.00023013,3]
[329509790,1718409123104,-2735.56,0.00023013,3]
[329509791,1718409123139,-500.0,0.00023013,3]
[329509792,1718409123166,-500.0,0.00023013,3]
[329509793,1718409123192,-725.51,0.00023013,3]
[329509794,1718409123210,-2174.79,0.00023013,3]
[329509795,1718409123230,-500.0,0.00023013,3]
[329509796,1718409123246,-500.0,0.00023013,3]
[329509797,1718409123258,-500.0,0.00023013,3]
[329509798,1718409123285,-500.0,0.00023013,3]
[329509799,1718409123319,-3237.71,0.00023013,3]
[329509800,1718409123340,-817.48,0.00023013,3]
[329509801,1718409123380,-500.0,0.00023013,3]
[329509802,1718409123391,-500.0,0.00023013,3]
[329509803,1718409123413,-2378.83,0.00023013,3]
[329509804,1718409123440,-692.48,0.00023013,3]
[329509805,1718409123461,-1135.87,0.00023013,3]
[329509806,1718409123473,-500.0,0.00023013,3]
[329509807,1718409123485,-500.0,0.00023013,3]
[329509808,1718409123523,-623.34,0.00023013,3]
[329509809,1718409123558,-500.0,0.00023013,3]
[329509810,1718409123569,-1042.03,0.00023013,3]
[329509811,1718409123582,-18084.54,0.00023013,3]
[329509812,1718409123593,-500.0,0.00023013,3]
[329509813,1718409123605,-12338.52293741,0.00023015,2]
[329509814,1718409123624,-150.0,0.00023027,2]
[329509815,1718409123640,-150.0,0.00023139,2]
[329509816,1718409123653,-150.0,0.00023142,2]
[329509817,1718409123666,-150.0,0.00023181,2]
[329509818,1718409123692,-150.0,0.00023181,2]
[329509819,1718409123706,-150.0,0.000232,3]
[329509820,1718409123731,-150.357,0.00023205,2]
[329509821,1718409123759,-150.0,0.00023211,2]
[329509822,1718409123792,-150.0,0.00023246,2]
[329509823,1718409123829,-1392.58693338,0.00023282,2]
[329509824,1718409123857,-436.61426308,0.00023282,2]
[329509825,1718409123872,-7543.72254498,0.00023283,2]
[329509826,1718409123896,-625.5848625,0.00023287,3]
[329509827,1718409123942,-500.0,0.00023287,3]
[329509828,1718409123969,-500.0,0.00023287,3]
[329509829,1718409123982,-500.0,0.00023287,3]
[329509830,1718409123999,-500.0,0.00023287,3]
[329509831,1718409124022,-500.0,0.00023287,3]
[329509832,1718409124068,-500.0,0.00023287,3]
[329509833,1718409124083,-500.0,0.00023287,3]
[329509834,1718409124123,-500.0,0.00023287,3]
[329509835,1718409124140,-543.65,0.00023287,3]
[329509836,1718409124168,-500.0,0.00023287,3]
[329509837,1718409124184,-389.65,0.00023287,3]
[329509838,1718409124199,-500.0,0.00023287,3]
[329509839,1718409124217,-749.79,0.00023287,3]
[329509840,1718409124244,-500.0,0.00023287,3]
[329509841,1718409124268,-484.74416832,0.00023287,3]
[329509842,1718409124292,-500.0,0.00023287,3]
[329509843,1718409124315,-500.0,0.00023287,3]
[329509844,1718409124369,-500.0,0.00023287,3]
[329509845,1718409124409,-500.0,0.00023287,3]
[329509846,1718409124426,-600.48,0.00023287,3]
[329509847,1718409124438,-500.0,0.00023287,3]
[329509848,1718409124450,-500.0,0.00023287,3]
[329509849,1718409124477,-2000.0,0.00023287,3]
[329509850,1718409124489,-500.0,0.00023287,3]
[329509851,1718409124504,-500.0,0.00023287,3]
[329509852,1718409124516,-500.0,0.00023287,3]
[329509853,1718409124545,-500.0,0.00023287,3]
[329509854,1718409124556,-500.0,0.00023287,3]
[329509855,1718409124567,-500.0,0.00023287,3]
[329509856,1718409124578,-500.0,0.00023287,3]
[329509857,1718409124590,-500.0,0.00023287,3]
[329509858,1718409124602,-500.0,0.00023287,3]
[329509859,1718409124618,-500.0,0.00023287,3]
[329509860,1718409124629,-500.0,0.00023287,3]
[329509861,1718409124640,-500.0,0.00023287,3]
[329509862,1718409124652,-500.0,0.00023287,3]
[329509863,1718409124663,-500.0,0.00023287,3]
[329509864,1718409124676,-500.0,0.00023287,3]
[329509865,1718409124687,-500.0,0.00023287,3]
[329509866,1718409124698,-500.0,0.00023287,3]
[329509867,1718409124726,-500.0,0.00023287,3]
[329509868,1718409124742,-323.4,0.00023287,3]
[329509869,1718409124761,-1018.08,0.00023287,3]
[329509870,1718409124801,-323.17513327,0.00023287,3]
[329509871,1718409124831,-500.0,0.00023287,3]
[329509872,1718409124862,-500.0,0.00023287,3]
[329509873,1718409124877,-500.0,0.00023287,3]
[329509874,1718409124936,-523.49,0.00023287,3]
[329509875,1718409124971,-150.0,0.00023287,3]
[329509876,1718409124984,-500.0,0.00023287,3]
[329509877,1718409124996,-500.0,0.00023287,3]
[329509878,1718409125008,-500.0,0.00023287,3]
[329509879,1718409125028,-525.32651957,0.00023287,3]
[329509880,1718409125043,-500.0,0.00023287,3]
[329509881,1718409125072,-420.59,0.00023287,3]
[329509882,1718409125084,-500.0,0.00023287,3]
[329509883,1718409125124,-500.0,0.00023287,3]
[329509884,1718409125144,-500.0,0.00023287,3]
[329509885,1718409125188,-500.0,0.00023287,3]
[329509886,1718409125219,-500.0,0.00023287,3]
[329509887,1718409125230,-500.0,0.00023287,3]
[329509888,1718409125253,-500.0,0.00023287,3]
[329509889,1718409125276,-1175.7,0.00023287,3]
[329509890,1718409125366,-323.04,0.00023287,3]
[329509891,1718409125376,-500.0,0.00023287,3]
[329509892,1718409125413,-500.0,0.00023287,3]
[329509893,1718409125426,-500.0,0.00023287,3]
[329509894,1718409125439,-1691.46,0.00023287,3]
[329509895,1718409125450,-500.0,0.00023287,3]
[329509896,1718409125475,-203.74,0.00023287,3]
[329509897,1718409125498,-500.0,0.00023287,3]
[329509898,1718409125510,-500.0,0.00023287,3]
[329509899,1718409125520,-500.0,0.00023287,3]
[329509900,1718409125577,-299.18,0.00023287,3]
[329509901,1718409125590,-24506.13,0.00023287,3]
[329509902,1718409125601,-777.76,0.00023287,3]
[329509903,1718409125612,-1854.16,0.00023287,3]
[329509904,1718409125625,-383.12,0.00023287,3]
[329509905,1718409125637,-500.0,0.00023287,3]
[329509906,1718409125646,-500.0,0.00023287,2]
[329509907,1718409125657,-1055.98,0.00023287,3]
[329509908,1718409125667,-1198.09,0.00023287,3]
[329509909,1718409125676,-500.0,0.00023287,3]
[329509910,1718409125687,-500.0,0.00023287,3]
[329509911,1718409125706,-500.0,0.00023287,3]
[329509912,1718409125715,-516.41,0.00023287,3]
[329509913,1718409125732,-500.0,0.00023287,3]
[329509914,1718409125743,-615.26,0.00023287,3]
[329509915,1718409125754,-6231.18,0.00023287,3]
[329509916,1718409125770,-1046.77,0.00023287,3]
[329509917,1718409125783,-3586.27,0.00023287,3]
[329509918,1718409125794,-561.85,0.00023287,3]
[329509919,1718409125805,-500.0,0.00023287,3]
[329509920,1718409125832,-968.93,0.00023287,3]
[329509921,1718409125848,-1857.88,0.00023287,3]
[329509922,1718409125869,-2183.55,0.00023287,3]
[329509923,1718409125905,-844.51,0.00023287,3]
[329509924,1718409125931,-500.0,0.00023287,3]
[329509925,1718409125952,-500.0,0.00023287,3]
[329509926,1718409125986,-836.87,0.00023287,3]
[329509927,1718409126005,-500.0,0.00023287,3]
[329509928,1718409126033,-500.0,0.00023287,3]
[329509929,1718409126052,-500.0,0.00023287,3]
[329509930,1718409126063,-1991.89,0.00023287,3]
[329509931,1718409126085,-500.0,0.00023287,3]
[329509932,1718409126098,-500.0,0.00023287,3]
[329509933,1718409126116,-5690.91,0.00023287,3]
[329509934,1718409126127,-969.41,0.00023287,3]
[329509935,1718409126156,-500.0,0.00023287,3]
[329509936,1718409126166,-500.0,0.00023287,3]
[329509937,1718409126182,-18610.37,0.00023287,3]
[329509938,1718409126192,-20167.93,0.00023287,3]
[329509939,1718409126236,-1674.49,0.00023287,3]
[329509940,1718409126248,-3030.53,0.00023287,3]
[329509941,1718409126258,-575.07,0.00023287,3]
[329509942,1718409126285,-500.0,0.00023287,3]
[329509943,1718409126308,-966.56,0.00023287,3]
[329509944,1718409126318,-775.23,0.00023287,3]
[329509945,1718409126332,-500.0,0.00023287,3]
[329509946,1718409126343,-598.46,0.00023287,3]
[329509947,1718409126365,-500.0,0.00023287,3]
[329509948,1718409126377,-500.0,0.00023287,3]
[329509949,1718409126406,-1655.24,0.00023287,3]
[329509950,1718409126417,-2076.84,0.00023287,3]
[329509951,1718409126429,-682.08,0.00023287,3]
[329509952,1718409126447,-1822.84,0.00023287,3]
[329509953,1718409126470,-500.0,0.00023287,3]
[329509954,1718409126488,-5529.61,0.00023287,3]
[329509955,1718409126516,-786.01,0.00023287,3]
[329509956,1718409126539,-574.58,0.00023287,3]
[329509957,1718409126548,-3184.07,0.00023287,3]
[329509958,1718409126560,-11746.88,0.00023287,3]
[329509959,1718409126578,-662.27,0.00023287,3]
[329509960,1718409126590,-658.84,0.00023287,3]
[329509961,1718409126600,-320.26,0.00023287,3]
[329509962,1718409126611,-6064.15,0.00023287,3]
[329509963,1718409126625,-1212.45,0.00023287,3]
[329509964,1718409126676,-500.0,0.00023287,3]
[329509965,1718409126695,-500.0,0.00023287,3]
[329509966,1718409126708,-500.0,0.00023287,3]
[329509967,1718409126737,-1250.84,0.00023287,3]
[329509968,1718409126755,-249.48,0.00023287,3]
[329509969,1718409126776,-1457.35,0.00023287,3]
[329509970,1718409126790,-2523.73,0.00023287,3]
[329509971,1718409126804,-521.47,0.00023287,3]
[329509972,1718409126815,-500.0,0.00023287,3]
[329509973,1718409126825,-500.0,0.00023287,3]
[329509974,1718409126836,-699.17,0.00023287,3]
[329509975,1718409126859,-500.0,0.00023287,3]
[329509976,1718409126870,-500.0,0.00023287,3]
[329509977,1718409126883,-513.58143544,0.00023287,3]
[329509978,1718409126894,-500.0,0.00023287,3]
[329509979,1718409126917,-896.88,0.00023287,3]
[329509980,1718409126931,-1061.25,0.00023287,3]
[329509981,1718409126989,-500.0,0.00023287,3]
[329509982,1718409127000,-500.0,0.00023287,3]
[329509983,1718409127020,-669.5,0.00023287,3]
[329509984,1718409127031,-500.0,0.00023287,3]
[329509985,1718409127043,-532.32,0.00023287,3]
[329509986,1718409127057,-445.41,0.00023287,3]
[329509987,1718409127072,-500.0,0.00023287,3]
[329509988,1718409127096,-512.85,0.00023287,3]
[329509989,1718409127107,-2252.2,0.00023287,3]
[329509990,1718409127119,-1329.78,0.00023287,3]
[329509991,1718409127139,-889.55,0.00023287,3]
[329509992,1718409127157,-726.83,0.00023287,3]
[329509993,1718409127197,-500.0,0.00023287,3]
[329509994,1718409127211,-500.0,0.00023287,3]
[329509995,1718409127241,-308.93857379,0.00023287,3]
[329509996,1718409127276,-1121.95,0.00023287,3]
[329509997,1718409127301,-500.0,0.00023287,3]
[329509998,1718409127315,-500.0,0.00023287,3]
[329509999,1718409127327,-635.93,0.00023287,3]
[329510000,1718409127363,-2002.63,0.00023287,3]
[329510001,1718409127394,-500.0,0.00023287,3]
[329510002,1718409127405,-500.0,0.00023287,3]
[329510003,1718409127454,-284.87,0.00023287,3]
[329510004,1718409127474,-749.23,0.00023287,3]
[329510005,1718409127484,-1297.0,0.00023287,3]
[329510006,1718409127493,-1013.7,0.00023287,3]
[329510007,1718409127504,-1218.43,0.00023287,3]
[329510008,1718409127553,-648.48,0.00023287,3]
[329510009,1718409127565,-2089.69,0.00023287,3]
[329510010,1718409127591,-500.0,0.00023287,3]
[329510011,1718409127621,-814.13,0.00023287,3]
[329510012,1718409127649,-1069.53,0.00023287,3]
[329510013,1718409127673,-500.0,0.00023287,3]
[329510014,1718409127689,-500.0,0.00023287,3]
[329510015,1718409127701,-500.0,0.00023287,3]
[329510016,1718409127720,-500.0,0.00023287,3]
[329510017,1718409127748,-500.0,0.00023287,3]
[329510018,1718409127765,-1126.29,0.00023287,3]
[329510019,1718409127788,-728.21,0.00023287,3]
[329510020,1718409127802,-4506.65,0.00023287,3]
[329510021,1718409127813,-505.75,0.00023287,3]
[329510022,1718409127856,-1722.19,0.00023287,3]
[329510023,1718409127889,-500.0,0.00023287,3]
[329510024,1718409127907,-1029.14,0.00023287,3]
[329510025,1718409127918,-690.09,0.00023287,3]
[329510026,1718409127955,-1013.4,0.00023287,3]
[329510027,1718409127987,-500.0,0.00023287,3]
[329510028,1718409128000,-2735.56,0.00023287,3]
[329510029,1718409128010,-500.0,0.00023287,3]
[329510030,1718409128020,-500.0,0.00023287,3]
[329510031,1718409128064,-725.51,0.00023287,3]
[329510032,1718409128081,-2174.79,0.00023287,3]
[329510033,1718409128092,-500.0,0.00023287,3]
[329510034,1718409128132,-500.0,0.00023287,3]
[329510035,1718409128142,-500.0,0.00023287,3]
[329510036,1718409128163,-500.0,0.00023287,3]
[329510037,1718409128174,-817.48,0.00023287,3]
[329510038,1718409128184,-3237.71,0.00023287,3]
[329510039,1718409128216,-500.0,0.00023287,3]
[329510040,1718409128245,-2378.83,0.00023287,3]
[329510041,1718409128256,-500.0,0.00023287,3]
[329510042,1718409128273,-692.48,0.00023287,3]
[329510043,1718409128285,-1135.87,0.00023287,3]
[329510044,1718409128298,-500.0,0.00023287,3]
[329510045,1718409128318,-500.0,0.00023287,3]
[329510046,1718409128331,-623.34,0.00023287,3]
[329510047,1718409128348,-500.0,0.00023287,3]
[329510048,1718409128360,-1042.03,0.00023287,3]
[329510049,1718409128382,-18084.54,0.00023287,3]
[329510050,1718409128409,-391.0174898,0.00023287,3]
[329510051,1718409128420,-150.0,0.00023311,2]
[329510052,1718409128456,-150.0,0.00023327,2]
[329510053,1718409128480,-150.0,0.00023342,2]
[329510054,1718409128492,-150.0,0.00023353,2]
[329510055,1718409128504,-151.45,0.00023364,2]
[329510056,1718409128525,-150.0,0.00023378,2]
[329510057,1718409128540,-150.0,0.00023383,2]
[329510058,1718409128560,-150.0,0.00023391,2]
[329510059,1718409128580,-600.0,0.00023408,3]
[329510060,1718409128592,-238.51779532,0.00023419,2]
[329510061,1718409128615,-150.0,0.00023469,2]
[329510062,1718409128627,-150.0,0.00023486,2]
[329510063,1718409128638,-150.0,0.00023503,2]
[329510064,1718409128649,-150.0,0.00023508,2]
[329510065,1718409128673,-150.0,0.00023517,2]
[329510066,1718409128685,-150.0,0.00023525,2]
[329510067,1718409128710,-12338.52293741,0.00023533,2]
[329510068,1718409128752,-150.0,0.00023555,2]
[329510069,1718409128796,-1070.78103848,0.0002356,10]
[329510070,1718409128810,-500.0,0.00023561,3]
[329510071,1718409128825,-500.0,0.00023561,3]
[329510072,1718409128853,-500.0,0.00023561,3]
[329510073,1718409128876,-500.0,0.00023561,3]
[329510074,1718409128901,-157.79,0.00023561,3]
[329510075,1718409128927,-500.0,0.00023561,3]
[329510076,1718409128944,-602.79,0.00023561,3]
[329510077,1718409128977,-553.71081593,0.00023561,3]
[329510078,1718409129016,-253.86,0.00023561,3]
[329510079,1718409129052,-500.0,0.00023561,3]
[329510080,1718409129110,-749.79,0.00023561,3]
[329510081,1718409129173,-500.0,0.00023561,3]
[329510082,1718409129393,-500.0,0.00023561,3]
[329510083,1718409129434,-500.0,0.00023561,3]
[329510084,1718409129448,-500.0,0.00023561,3]
[329510085,1718409129467,-600.48,0.00023561,3]
[329510086,1718409129484,-500.0,0.00023561,3]
[329510087,1718409129521,-500.0,0.00023561,3]
[329510088,1718409129555,-2000.0,0.00023561,3]
[329510089,1718409129581,-500.0,0.00023561,3]
[329510090,1718409129613,-500.0,0.00023561,3]
[329510091,1718409129626,-500.0,0.00023561,3]
[329510092,1718409129655,-500.0,0.00023561,3]
[329510093,1718409129696,-500.0,0.00023561,3]
[329510094,1718409129712,-500.0,0.00023561,3]
[329510095,1718409129738,-500.0,0.00023561,3]
[329510096,1718409129789,-500.0,0.00023561,3]
[329510097,1718409129808,-500.0,0.00023561,3]
[329510098,1718409129819,-376.38476354,0.00023561,3]
[329510099,1718409129863,-500.0,0.00023561,3]
[329510100,1718409129900,-500.0,0.00023561,3]
[329510101,1718409129936,-500.0,0.00023561,3]
[329510102,1718409129947,-500.0,0.00023561,3]
[329510103,1718409129959,-500.0,0.00023561,3]
[329510104,1718409130021,-285.26,0.00023561,3]
[329510105,1718409130060,-1018.08,0.00023561,3]
[329510106,1718409130101,-500.0,0.00023561,3]
[329510107,1718409130152,-500.0,0.00023561,3]
[329510108,1718409130167,-500.0,0.00023561,3]
[329510109,1718409130203,-150.0,0.00023561,3]
[329510110,1718409130234,-500.0,0.00023561,3]
[329510111,1718409130258,-500.0,0.00023561,3]
[329510112,1718409130270,-500.0,0.00023561,3]
[329510113,1718409130282,-500.0,0.00023561,3]
[329510114,1718409130329,-500.0,0.00023561,3]
[329510115,1718409130377,-500.0,0.00023561,3]
[329510116,1718409130416,-500.0,0.00023561,3]
[329510117,1718409130434,-500.0,0.00023561,3]
[329510118,1718409130455,-500.0,0.00023561,3]
[329510119,1718409130476,-500.0,0.00023561,3]
[329510120,1718409130508,-500.0,0.00023561,3]
[329510121,1718409130521,-1175.7,0.00023561,3]
[329510122,1718409130535,-500.0,0.00023561,3]
[329510123,1718409130553,-500.0,0.00023561,3]
[329510124,1718409130585,-500.0,0.00023561,3]
[329510125,1718409130597,-1691.46,0.00023561,3]
[329510126,1718409130615,-500.0,0.00023561,3]
[329510127,1718409130661,-500.0,0.00023561,3]
[329510128,1718409130719,-500.0,0.00023561,3]
[329510129,1718409130756,-500.0,0.00023561,3]
[329510130,1718409130789,-24506.13,0.00023561,3]
[329510131,1718409130808,-777.76,0.00023561,3]
[329510132,1718409130829,-1854.16,0.00023561,3]
[329510133,1718409130886,-500.0,0.00023561,3]
[329510134,1718409130940,-500.0,0.00023561,2]
[329510135,1718409130962,-1055.98,0.00023561,3]
[329510136,1718409130987,-1198.09,0.00023561,3]
[329510137,1718409131009,-500.0,0.00023561,3]
[329510138,1718409131069,-500.0,0.00023561,3]
[329510139,1718409131081,-500.0,0.00023561,3]
[329510140,1718409131109,-516.41,0.00023561,3]
[329510141,1718409131125,-500.0,0.00023561,3]
[329510142,1718409131160,-615.26,0.00023561,3]
[329510143,1718409131191,-6231.18,0.00023561,3]
[329510144,1718409131225,-1046.77,0.00023561,3]
[329510145,1718409131262,-3586.27,0.00023561,3]
[329510146,1718409131340,-561.85,0.00023561,3]
[329510147,1718409131353,-500.0,0.00023561,3]
[329510148,1718409131373,-968.93,0.00023561,3]
[329510149,1718409131406,-1857.88,0.00023561,3]
[329510150,1718409131419,-2183.55,0.00023561,3]
[329510151,1718409131455,-844.51,0.00023561,3]
[329510152,1718409131476,-500.0,0.00023561,3]
[329510153,1718409131493,-500.0,0.00023561,3]
[329510154,1718409131514,-836.87,0.00023561,3]
[329510155,1718409131538,-500.0,0.00023561,3]
[329510156,1718409131552,-500.0,0.00023561,3]
[329510157,1718409131565,-500.0,0.00023561,3]
[329510158,1718409131578,-1991.89,0.00023561,3]
[329510159,1718409131589,-500.0,0.00023561,3]
[329510160,1718409131600,-500.0,0.00023561,3]
[329510161,1718409131611,-5690.91,0.00023561,3]
[329510162,1718409131626,-969.41,0.00023561,3]
[329510163,1718409131643,-581.62,0.00023561,3]
[329510164,1718409131669,-500.0,0.00023561,3]
[329510165,1718409131695,-18610.37,0.00023561,3]
[329510166,1718409131722,-20167.93,0.00023561,3]
[329510167,1718409131752,-1674.49,0.00023561,3]
[329510168,1718409131763,-3030.53,0.00023561,3]
[329510169,1718409131779,-575.07,0.00023561,3]
[329510170,1718409131805,-500.0,0.00023561,3]
[329510171,1718409131819,-966.56,0.00023561,3]
[329510172,1718409131852,-775.23,0.00023561,3]
[329510173,1718409131879,-500.0,0.00023561,3]
[329510174,1718409131905,-598.46,0.00023561,3]
[329510175,1718409131940,-585.21916232,0.00023561,3]
[329510176,1718409131954,-524.06,0.00023561,3]
[329510177,1718409131979,-1655.24,0.00023561,3]
[329510178,1718409131991,-2076.84,0.00023561,3]
[329510179,1718409132033,-682.08,0.00023561,3]
[329510180,1718409132045,-1822.84,0.00023561,3]
[329510181,1718409132057,-500.0,0.00023561,3]
[329510182,1718409132086,-5529.61,0.00023561,3]
[329510183,1718409132196,-786.01,0.00023561,3]
[329510184,1718409132223,-574.58,0.00023561,3]
[329510185,1718409132236,-3184.07,0.00023561,3]
[329510186,1718409132263,-11746.88,0.00023561,3]
[329510187,1718409132294,-662.27,0.00023561,3]
[329510188,1718409132315,-658.84,0.00023561,3]
[329510189,1718409132349,-500.0,0.00023561,3]
[329510190,1718409132380,-6064.15,0.00023561,3]
[329510191,1718409132416,-1212.45,0.00023561,3]
[329510192,1718409132441,-500.0,0.00023561,3]
[329510193,1718409132516,-500.0,0.00023561,3]
[329510194,1718409132540,-1250.84,0.00023561,3]
[329510195,1718409132560,-1457.35,0.00023561,3]
[329510196,1718409132595,-2523.73,0.00023561,3]
[329510197,1718409132648,-521.47,0.00023561,3]
[329510198,1718409132680,-500.0,0.00023561,3]
[329510199,1718409132693,-601.35961658,0.00023561,3]
[329510200,1718409132706,-699.17,0.00023561,3]
[329510201,1718409132729,-500.0,0.00023561,3]